Cogmind - Beta 11 *** ADVENTURER MODE // 2022.03.24 @ 00:13:35 Player: Sn@43 Result: Self-destructed Performance ------------- Evolutions (1) 500 Regions Visited (3) 600 Robots Destroyed (31) 155 Value Destroyed (628) 628 Prototype IDs (3) 60 Alien Tech Used (0) 0 Bonus (183) 183 TOTAL SCORE: 2126 Bonus ------- Follower Combat Kills 183 Cogmind --------- Core Integrity 376/400 Matter 290/300 Energy 160/160 System Corruption 0% Temperature Cool (0) Movement Rolling (115) Ox1 Location -9/Materials Parts ------- > --- POWER (1) -------- Light Nuclear Core > --- PROPULSION (2) --- Compact Wheel Compact Wheel > --- UTILITY (4) ------ Large Storage Unit Large Storage Unit Weight Redist. System Medium Armor Plating > --- WEAPON (2) ------- Beamcaster Assault Rifle > --- INVENTORY (15) --- Light Nuclear Core Light Nuclear Core Wheel Compact Wheel Compact Wheel Compact Wheel Improved Heat Sink Huge Storage Unit Improved Targeting Computer Core Shielding Improved EM Shotgun Autogun Grenade Launcher Rocket Launcher Datajack Peak State ------------ > --- POWER ------------ Light Nuclear Core > --- PROPULSION ------- Compact Wheel Compact Wheel > --- UTILITY ---------- Large Storage Unit Large Storage Unit Weight Redist. System Medium Armor Plating > --- WEAPON ----------- Beamcaster Assault Rifle > --- INVENTORY -------- Light Nuclear Core Light Nuclear Core Wheel Compact Wheel Compact Wheel Compact Wheel Improved Heat Sink Huge Storage Unit Improved Targeting Computer Core Shielding Improved EM Shotgun Autogun Grenade Launcher Rocket Launcher Datajack [Rating: 19] Favorites ----------- Power Ion Engine Engine Ion Engine Power Core Light Nuclear Core Propulsion Compact Wheel Wheel Compact Wheel Utility Large Storage Unit Device Weight Redist. System Storage Large Storage Unit Protection Light Armor Plating Weapon Light Assault Rifle Energy Gun Particle Gun Ballistic Gun Light Assault Rifle Launcher Grenade Launcher Build | -11 -10 -10 -9 ------- Run | Scr Mat Min Mat Slots Evolved 2 | . . . 2 Power . | . . . . Propulsion . | . . . . Utility 2 | . . . 2 Weapon . | . . . . Parts Attached 42 | 7 6 9 20 Power 9 | 1 1 2 5 Engine 8 | 1 1 2 4 Core 1 | . . . 1 Reactor . | . . . . Propulsion 9 | 2 1 1 5 Treads . | . . . . Leg . | . . . . Wheel 9 | 2 1 1 5 Hover . | . . . . Flight . | . . . . Utility 9 | 2 1 . 6 Device 1 | . . . 1 Storage 4 | 2 1 . 1 Processor . | . . . . Hackware . | . . . . Protection 4 | . . . 4 Artifact . | . . . . Weapon 15 | 2 3 6 4 Energy Gun 4 | . . 1 3 Energy Cannon . | . . . . Ballistic Gun 9 | 2 2 4 1 Ballistic Cannon . | . . . . Launcher 2 | . 1 1 . Special Weapon . | . . . . Impact Weapon . | . . . . Slashing Weapon . | . . . . Piercing Weapon . | . . . . Special Melee Weapon . | . . . . Unidentified Prototypes 3 | . . . 3 Parts Lost 3 | . 1 . 2 Power . | . . . . Propulsion 2 | . 1 . 1 Utility 1 | . . . 1 Weapon . | . . . . Highest Loss Streak 1 | . 1 . 1 To Critical Strikes . | . . . . Average Slot Usage (%) 99 | . 100 100 98 Engine 12 | . 14 14 7 Wheel 26 | . 28 28 21 Device 1 | . . . 9 Storage 26 | . 28 28 22 Protection 2 | . . . 12 Energy Gun 3 | . . 5 6 Ballistic Gun 22 | . 28 21 15 Naked Turns . | . . . . Heaviest Build 59 | 17 32 38 59 Greatest Support 38 | 32 32 32 38 Greatest Overweight (x) 2 | . . 2 1 Average Overweight (x) . | . . . 1 Largest Inventory Capacity 15 | 8 15 15 15 Average Capacity 14 | 7 14 15 15 Most Carried 15 | 6 14 15 15 Average Carried 11 | 3 9 12 12 Final Capacity 15 | 8 15 15 15 Final Carried 15 | 6 13 11 15 Class Distribution -------------------- 91% | Mutant 8% | Scavenger-Mutant Dominant Class ---------------- Mutant | -10/Materials Mutant | -10/Mines Mutant | -9/Materials Resources | -11 -10 -10 -9 ----------- Run | Scr Mat Min Mat Matter Collected 832 | 280 46 227 279 Remotely . | . . . . Salvage Created 1171 | 58 130 611 372 Parts 63 | 4 14 20 25 Haulers Intercepted 1 | . . . 1 Recyclers Shooed 2 | . . 2 . Parts Field Recycled . | . . . . Retrieved Matter . | . . . . Parts Self-Destructed . | . . . . Prevented . | . . . . Kills | -11 -10 -10 -9 ------- Run | Scr Mat Min Mat Combat Hostiles Destroyed 21 | . 9 6 6 Guns 20 | . 9 5 6 AOE 1 | . . 1 . Classes Destroyed 7 | 1 1 3 2 Worker 2 | . . 1 1 Tunneler 1 | . . 1 . Hauler 1 | . . . 1 Recycler 6 | 1 . 5 . Swarmer 10 | . 9 1 . Grunt 9 | . . 5 4 Sentry 2 | . . . 2 Best Kill Streak 3 | 1 3 3 3 Combat Bots Only 3 | . 3 1 3 Max Kills in Single Turn 2 | 1 1 2 2 Gunslinging . | . . . . Exploded 1 | . . 1 . Melee . | . . . . Uniques/NPCs Destroyed . | . . . . Combat | -11 -10 -10 -9 -------- Run | Scr Mat Min Mat Damage Taken 791 | . 237 248 306 Core 126 | . 51 51 24 Absorbed by Shields . | . . . . Regen/Repaired (Parts) 20 | . . . 20 Core Remaining (%) 79 | 100 . 59 . Volleys Fired 90 | 5 23 44 18 Largest 2 | 2 2 2 2 Hottest 85 | 40 40 85 65 Shots Fired 179 | 10 46 87 36 Gun 178 | 10 46 86 36 Cannon . | . . . . Launcher 1 | . . 1 . Special . | . . . . Kinetic 155 | 10 46 66 33 Thermal 20 | . . 20 . Explosive 1 | . . 1 . Electromagnetic 3 | . . . 3 Robot Hit Streak 32 | 2 12 25 32 Robot Miss Streak 2 | 2 2 2 1 Penetration Max . | . . . . Secondary Targets . | . . . . Shots Hit Robots 135 | 6 23 74 32 Core Hits 62 | 2 13 31 16 Critical Kills 1 | . . 1 . Critical Parts Destroyed . | . . . . Critical Strikes 1 | . . 1 . Destroy 1 | . . 1 . Melee Attacks . | . . . . Impact . | . . . . Slashing . | . . . . Piercing . | . . . . Sneak Attacks . | . . . . Combat Hostiles . | . . . . Follow-up Attacks . | . . . . Damage Inflicted 1503 | 45 191 809 458 Guns 1425 | 45 191 731 458 Cannons . | . . . . Explosions 54 | . . 54 . Melee . | . . . . Ramming 24 | . . 24 . Kinetic 1093 | 45 191 455 402 Thermal 276 | . . 276 . Explosive 54 | . . 54 . Electromagnetic 56 | . . . 56 Impact . | . . . . Slashing . | . . . . Piercing . | . . . . Highest Corruption . | . . . . Average Corruption . | . . . . Corruption Purged . | . . . . Corruption Blocked . | . . . . Overload Shots . | . . . . Overflow Damage 4 | . 1 3 . Projectiles . | . . . . Explosions 4 | . 1 3 . Melee . | . . . . Knockbacks 1 | . . 1 . Impact 1 | . . 1 . Kinetic . | . . . . Secondary . | . . . . Self-Inflicted Damage 83 | . 71 12 . Shots 2 | . 2 . . Rammed 1 | . . 1 . Targets Rammed 1 | . . 1 . Kicked . | . . . . Crushed . | . . . . Highest Temperature 326 | . . 326 24 Average Temperature 75 | . . 82 11 Received Heat Transfer 378 | . . 171 207 Effects 1 | . . 1 . Damage (minor) 1 | . . 1 . Siege Activations . | . . . . Robots Corrupted . | . . . . Combat Hostiles . | . . . . Parts Fried . | . . . . Impact Corruptions . | . . . . Robots Melted . | . . . . Combat Hostiles . | . . . . Parts Melted 1 | . . 1 . Heat Transferred 629 | . . 629 . Parts Sabotaged . | . . . . Parts Stolen . | . . . . Parts Stripped . | . . . . Power Chain Reactions . | . . . . Missiles Intercepted . | . . . . Alert | -11 -10 -10 -9 ------- Run | Scr Mat Min Mat Peak Influence 382 | 5 382 150 228 Initial 60 | . 2 60 . Average 96 | 1 148 78 70 Maximum Alert Level 1 | . 1 . 1 Low Security (%) 93 | 100 84 100 92 Level 1 6 | . 15 . 7 Level 2 . | . . . . Level 3 . | . . . . Level 4 . | . . . . Level 5 . | . . . . High Security . | . . . . Max Security . | . . . . Squads Dispatched 2 | . . 1 1 Investigation . | . . . . Extermination . | . . . . Reinforcement 1 | . . . 1 Assault 1 | . . 1 . Garrison . | . . . . Intercept . | . . . . Searches Triggered . | . . . . Construction Impeded . | . . . . Haulers Reinforced . | . . . . Active Scanning Responses . | . . . . Cargo Convoy Interrupts . | . . . . Stealth | -11 -10 -10 -9 --------- Run | Scr Mat Min Mat Distress Signals 6 | . 2 1 3 Communications Jammed . | . . . . Distress Signals . | . . . . Times Spotted 49 | . 21 12 16 Peak Tracking Total 5 | . 5 4 4 Tactical Retreats 5 | . 2 2 1 Traps | -11 -10 -10 -9 ------- Run | Scr Mat Min Mat Traps Triggered . | . . . . Indirectly . | . . . . Trap Hack Attempts . | . . . . Triggered . | . . . . Disarmed . | . . . . Reprogrammed . | . . . . Reused . | . . . . Traps Extracted . | . . . . Installed . | . . . . Triggered . | . . . . Machines | -11 -10 -10 -9 ---------- Run | Scr Mat Min Mat Machines Disabled 2 | . 2 . . Max in Single Turn 2 | . 2 . . Machines Sabotaged . | . . . . Garrisons Compromised . | . . . . Overloaded Fab Kills . | . . . . Hacking | -11 -10 -10 -9 --------- Run | Scr Mat Min Mat Machines Accessed 12 | . 9 . 3 Terminals 9 | . 8 . 1 Fabricators . | . . . . Repair Stations 1 | . . . 1 Recycling Units 2 | . 1 . 1 Scanalyzers . | . . . . Garrison Access . | . . . . Total Hacks 31 | . 23 . 8 Successful 21 | . 15 . 6 Failed 10 | . 8 . 2 Catastrophic . | . . . . Database Lockouts . | . . . . Manual 27 | . 23 . 4 Terminals 25 | . 22 . 3 Fabricators . | . . . . Repair Stations 2 | . . . 2 Recycling Units 4 | . 1 . 3 Scanalyzers . | . . . . Garrison Access . | . . . . Terminal Hacks 7 | . 6 . 1 Robot Analysis 7 | . 6 . 1 Fabricator Hacks . | . . . . Repair Station Hacks 2 | . . . 2 Scan Component 1 | . . . 1 Repair 1 | . . . 1 Recycling Unit Hacks 1 | . . . 1 Retrieve Components 1 | . . . 1 Scanalyzer . | . . . . Garrison Access Hacks . | . . . . Unauthorized Hacks 11 | . 9 . 2 Terminals 9 | . 8 . 1 Botnet 9 | . 8 . 1 Fabricators . | . . . . Repair Stations . | . . . . Recycling Units 2 | . 1 . 1 Reject 2 | . 1 . 1 Scanalyzers . | . . . . Garrison Access . | . . . . Data Cores Recovered . | . . . . Used . | . . . . Hacking Detections 10 | . 7 . 3 Full Trace Events 1 | . 1 . . Feedback Events . | . . . . Feedback Blocked . | . . . . Robot Schematics Acquired . | . . . . Robots Built . | . . . . Authchips . | . . . . Time . | . . . . Total Robot Build Rating . | . . . . Part Schematics Acquired . | . . . . Parts Built . | . . . . Authchips . | . . . . Time . | . . . . Total Part Build Rating . | . . . . Parts Repaired 1 | . . . 1 Time 26 | . . . 26 Parts Recycled . | . . . . Recycled Matter . | . . . . Retrieved Matter . | . . . . Retrieved Components 10 | . . . 10 Parts Scanalyzed . | . . . . Part Schematics Acquired . | . . . . Parts Damaged . | . . . . Bothacking | -11 -10 -10 -9 ------------ Run | Scr Mat Min Mat Used RIF Installer . | . . . . Robots Hacked . | . . . . Non-combat . | . . . . Combat . | . . . . Robot Hacks Applied . | . . . . Relay Couplers Released . | . . . . Fabnet Peak Effective % . | . . . . Robots Rewired . | . . . . Allies Hacked . | . . . . Hacks Repelled . | . . . . Allies | -11 -10 -10 -9 -------- Run | Scr Mat Min Mat Total Allies 4 | . . 4 . Largest Group 4 | . . 4 4 Highest-Rated Group 71 | . . 71 71 Highest-Rated Ally 31 | . . 31 31 Total Orders 1 | . . . 1 FOLLOW 1 | . . . 1 Ally Attacks 35 | . . 10 25 Total Damage 417 | . . 150 267 Kills 7 | . . 3 4 Allies Corrupted . | . . . . Allies Melted . | . . . . Intel | -11 -10 -10 -9 ------- Run | Scr Mat Min Mat Robot Analysis Total 7 | . 6 . 1 Derelict Logs Recovered 1 | . . 1 . Drone Launches . | . . . . Drone Recoveries . | . . . . Exploration | -11 -10 -10 -9 ------------- Run | Scr Mat Min Mat Turns Passed 2846 | 109 897 1312 528 Spaces Moved 2173 | 80 805 988 300 Core 2 | 2 . . . Treads . | . . . . Legs . | . . . . Wheels 2171 | 78 805 988 300 Hover . | . . . . Flight . | . . . . Fastest Speed 50 | 50 100 100 115 Average Speed 107 | 98 100 112 115 Slowest Speed 130 | 100 100 130 115 Overloaded Moves . | . . . . Propulsion Burnouts . | . . . . Robots Hopped . | . . . . Cave-ins Triggered . | . . . . Exploration Rate (%) 58 | 4 99 99 32 Regions Visited 3 Branch Regions 1 Pre-discovered Areas 1 | . . 1 . Known Exits Taken . | . . . . Unknown Exits Taken 3 | 1 1 1 . Scrap Searched 2 | . . 2 . Spaces Dug . | . . . . Terrain Destroyed 47 | . 37 10 . Melee . | . . . . Projectile . | . . . . AOE 47 | . 37 10 . Terrain Rammed . | . . . . Walls Destroyed . | . . . . Machines Disabled . | . . . . Actions | -11 -10 -10 -9 --------- Run | Scr Mat Min Mat Total 2521 | 99 860 1113 449 Wait 149 | . 10 56 83 Move 2170 | 79 804 987 300 Hop . | . . . . Pick Up 40 | 8 12 5 15 Fast Attach 10 | 5 . 1 4 Attach 18 | 2 2 3 11 Detach 3 | . . . 3 Swap 14 | . 4 5 5 Drop 26 | . 5 11 10 Fire 90 | 5 23 44 18 Melee . | . . . . Ram 1 | . . 1 . Kick . | . . . . Crush . | . . . . Escape Stasis . | . . . . Rewire . | . . . . Trap . | . . . . Miscellaneous . | . . . . Route ------- -11/Scrapyard -10/Materials (discovered 4 exits: *Mat x3 / [*Min]) -10/Mines (discovered 2 exits: *Mat x2) -9/Materials (discovered 1 exit: [*Min]) History --------- Turn | Location | Event 13 | -11/Scrapyard | Discovered new exit (range 16) 110 | -11/Scrapyard | Entered Materials 247 | -10/Materials | Discovered new exit (range 15) 318 | -10/Materials | Build established: Mutant 404 | -10/Materials | Discovered new exit (range 16) 606 | -10/Materials | Discovered new exit (range 9) 956 | -10/Materials | Discovered new exit (range 16) 1007 | -10/Materials | Entered Mines 1011 | -10/Mines | Joined a pair of Derelicts in attacking an 0b10 outpost 1090 | -10/Mines | Discovered new exit (range 5) 1167 | -10/Mines | Learned Materials emergency access door positions 1596 | -10/Mines | Discovered new exit (range 11) 1805 | -10/Mines | Met a Derelict testing a Signal Generator 1982 | -10/Mines | Learned location of Storage (-9) 2161 | -10/Mines | Assisted by bots powering up and referring to "LRC-V3" 2319 | -10/Mines | Entered Materials 2319 | -9/Materials | Accompanied by 4 allies 2319 | -9/Materials | Evolved 2 slots: Utility x2 2735 | -9/Materials | Repaired Com. Wheel 2838 | -9/Materials | Discovered new exit (range 12) 2847 | -9/Materials | Self-destructed Last Messages --------------- Rating: 1 Time: 26 >>Repair Repairing Com. Wheel... ETC: 26 02709_ K-01 Serf collects debris. 02721_ K-01 Serf cleans the Fusion Modulator. 02735_ Repair station completes Com. Wheel repairs. 02735_ Acquired Com. Wheel. 02736_ Connecting with Repair Station... 02738_ R-06 Scavenger collects Sml. Laser. 02742_ K-01 Serf cleans the Fusion Modulator. 02742_ R-06 Scavenger collects Ion Engine. 02742_ R-06 Scavenger collects Assault Rifle. 02745_ K-01 Serf cleans the Fusion Modulator. 02746_ R-06 Scavenger collects Imp. Ion Engine. 02757_ R-06 Scavenger collects Com. Wheel. 02774_ K-01 Serf cleans the Pressure Siphon. 02795_ Acquired Med. Armor Plating. 02838_ EXIT=FOUND Map ----- +----------------------------------------------------+ | #""""" # ###### !! #???????? | | #""""" # ^! !=[! #???????? | | #""""" # ##### !! !*=** #???????? | | # """ #######+####???# [!=!=! #???????? | | # #??# #???# =%* !="Y" ########? | | # #??# #???# """ | | ##########??# ] #???# | | ????????????# !]] #???# | | ????????????# ]]] #???# ############ | | ????????????#################### # ! | | ?????????????????# = % % #% + | | ?????????????????# """!""" """ + #### | | ?????????????????# "R"=""" """ # #??# | | ?????????????????# " " """ """ # #??# | | ?????????????????# # #??# | | ?????????????????#% ! # #??# | | ?????????????????######## ###### #??#########+## | | ????????????????????????######## #???????# | | ????????????????????????# ##% #???????# | | ????????????????????????# #???????# | | ????????????????????????# #???????# | | ????????????????????????# #???????# """ | | ????????????????????????# ### ##???????# """ | | ?????????????############# ####+########?# """ | | ?????????????# # # ### """ | | ?????????????# @ + + | | ?????????????# # # [ ### | | ?????????????# # # #?##+#### | | ?????????????# # #] #???????? | | ?????????????# # # ! #???????? | | ?????????????# # w# #???????? | | ?????????????############# ###+###+#####???????? | | ?????????????????????????# #???????????????????? | | ?????????????????????????" ????????????+??????? | | ????????????????????????? ???????????????????? | | ????????????????????????? ???????????????????? | | ????????????????????????" < #??????????????????? | | ????????????????????????| #??????????????????? | | ???????????????????????? #??????????????????? | | ????????????????????????"" #??????????????????? | | ?????????????????????????? #???????????????????? | | ?????????????????????????????????????????????????? | | ?????????????????????????????????????????????????? | | ?????????????????????????????????????????????????? | | ?????????????????????????????????????????????????? | | ?????????????????????????????????????????????????? | | ?????????????????????????????????????????????????? | | ?????????????????????????????????????????????????? | | ?????????????????????????????????????????????????? | | ?????????????????????????????????????????????????? | +----------------------------------------------------+ Best States ------------- Heat Dissipation 28 Energy Generation 18 Energy Capacity 265 Matter Stores 300 Matter Capacity 300 Sight Range 16 Terrain Scan Density 10 Additional Mass Support 6 Armor Coverage 225 Resistance: KI 20 Resistance: TH 20 Resistance: EX 20 Resistance: EM 20 Resistance: I 20 Resistance: S 20 Resistance: P 20 Core Shielding 20 Evasion (%) 40 Offensive Hacking 10 Item Schematics ----------------- None Robot Schematics ------------------ None Fabricated ------------ Nothing Alien Tech Used ----------------- None Achievements -------------- Dramatic Entrance Challenges ------------ None Game ------ Seed TargetHypervelocityMinigun Manual? 0 Play Time 00:57:46 Cumulative 34.0 hours Start 2022.03.23 @ 16:05:18 End 2022.03.24 @ 00:13:35 Sessions 1 Manual Loads 0 Difficulty Adventurer Special Mode None Game No. 68 Rogue 46 Adventurer 22 Explorer 0 Win Type - Total 0 Types 0/0/0/0/0/0/0/0/0 Lore% 20 Gallery% 21 Achievement% 24 Wizard Run 0 Options --------- ASCII 0 Keyboard 0 Movement Numpad Keybinds 0 Fullscreen 1 Font 28/SmallcapsGlow Map View 84x54 Tactical HUD 1 Map Filters NONE Filters NONE Steam 1 RUN: 084e3504-0371-46de-83cb-8af5a1ce8a00